[Event "MPL-4 Indian Chess Tour 2022"]
[Site "Chess24"]
[Date "2022.09.27"]
[Round "1.6"]
[White "Mitrabha, Guha"]
[Black "Ganguly, Surya Shekhar"]
[Result "0-1"]
[ECO "A22"]
[WhiteElo "2471"]
[BlackElo "2589"]
[Annotator "TA"]
[PlyCount "88"]
[EventDate "2022.09.29"]
[EventType "tourn (rapid)"]
[EventCountry "NET"]
[SourceTitle "playchess.com"]
[Source "ChessBase"]
[SourceQuality "1"]
[WhiteTeam "India"]
[BlackTeam "India"]
[WhiteTeamCountry "IND"]
[BlackTeamCountry "IND"]
[TimeControl "900+10"]

{[%evp 10,88,-11,-22,-8,-17,-12,-52,-22,-40,-43,-47,-45,-49,-52,-54,-27,-78,-62,-77,-76,-85,-76,-66,-59,-79,-46,-47,-27,-40,-41,-41,-7,-50,-41,-63,-64,-42,-41,-302,-283,-304,-318,-303,-229,-405,-293,-269,-202,-173,-164,-164,-139,-137,-137,-141,-125,-129,-131,-117,-123,-126,-122,-122,-125,-125,-115,-236,-220,-222,-222,-406,-401,-850,-847,-844,-844,-29990,-1946,-29998,-29999]} 1. c4 {[%emt 0:00:00]} e5 {[%emt 0:00:00]} 2. Nc3 {[%emt 0:00:13]} Nf6 {[%emt 0:00:02]} 3. g3 {[%emt 0:00:13]} Bb4 {[%emt 0:00:08]} 4. Nd5 {[%emt 0:00:02]} Nxd5 {[%emt 0:00:19]} 5. cxd5 {[%emt 0:00:02]} O-O {[%emt 0:00:04]} 6. Bg2 {[%emt 0:00:02]} c6 {[%emt 0:00:22] is the legacy move (6...d6). A22: English Opening: 1...e5 2 Nc3 Nf6.} 7. a3 {[%emt 0:00:42]} Be7 {[%emt 0:00:22]} 8. dxc6 {[%emt 0:00:11] [#]} bxc6 $146 {[%emt 0:00:06] Black is slightly better.} ({Predecessor:} 8... Nxc6 9. e4 d5 10. d3 dxe4 11. Bxe4 Nd4 12. Be3 Be6 13. Bg2 Bb3 14. Qd2 Nc2+ {0-1 (14) Neil,C (460)-Ardila Barrera,F (2378) LSS email 2016}) 9. d3 {[%emt 0:00:12]} d5 {[%emt 0:00:09]} 10. Nf3 {[%emt 0:00:02]} f6 {[%emt 0:00:34]} 11. O-O {[%emt 0:00:10]} Be6 {[%emt 0:00:02]} 12. Qc2 {[%emt 0:00:06]} c5 {[%emt 0:00:14]} 13. e4 {[%emt 0:00:06]} (13. b4 $1 $11) 13... dxe4 $17 {[%emt 0:00:22]} 14. dxe4 {[%emt 0:00:02]} Nc6 {[%emt 0:00:01][%cal Bb8c6,Bc6d4,Bd4c2][%mdl 32]} 15. Bd2 {[%emt 0:01:07]} Qb6 {[%emt 0:00:29]} 16. Rfc1 {[%emt 0:00:40][%cal Ob2b4]} Bb3 {[%emt 0:00:13]} 17. Qc3 {[%emt 0:00:11]} Rfd8 {[%emt 0:00:20]} 18. Bf1 {[%emt 0:00:11]} Kh8 {[%emt 0:01:15]} 19. Be3 {[%emt 0:00:25][%cal Re3c5]} Nd4 {[%emt 0:00:17]} 20. Nd2 {[%emt 0:00:12] And now Bxd4 would win.} Rab8 {[%emt 0:00:03]} 21. Kg2 {[%emt 0:01:02]} (21. Bxd4 $5 exd4 22. Qf3 $15) 21... Be6 {[%emt 0:01:40]} 22. Rab1 {[%emt 0:00:58]} Ba2 {[%emt 0:00:10] Black has more active pieces.} 23. Ra1 $1 {[%emt 0:01:17]} Qxb2 {[%emt 0:00:08]} 24. Qa5 $2 {[%emt 0:00:07][%mdl 8192] Black keeps a firm grip on the game.} (24. Qxb2 $15 Rxb2 25. Nc4 Bxc4 26. Rxc4) 24... Nc2 $19 {[%emt 0:00:33]} 25. Rxc2 {[%emt 0:00:54]} Qxc2 {[%emt 0:00:04]} 26. Qxa7 {[%emt 0:00:06]} Re8 {[%emt 0:03:15] Strongly threatening ...c4.} (26... Rxd2 27. Qxb8+ Rd8 28. Qb7 $14) 27. Kg1 $2 {[%emt 0:04:18]} (27. a4 {might work better.} Qb2 28. Re1) 27... Qb2 {[%emt 0:00:15]} 28. Rd1 {[%emt 0:00:07]} c4 {[%emt 0:01:12]} 29. Nxc4 {[%emt 0:01:35]} Bxc4 {[%emt 0:00:24]} 30. Bxc4 {[%emt 0:00:01]} Qc2 {[%emt 0:00:01]} 31. Rc1 {[%emt 0:00:55]} Rb1 {[%emt 0:02:10]} 32. Rxb1 {[%emt 0:00:32]} Qxb1+ {[%emt 0:00:01]} 33. Bf1 {[%emt 0:00:01]} Qxe4 {[%emt 0:01:01]} 34. Qd7 {[%emt 0:00:22]} Qa8 {[%emt 0:00:12]} 35. Bb5 {[%emt 0:00:34]} Rb8 {[%emt 0:00:05]} 36. a4 {[%emt 0:00:01] [#]} Qb7 $1 {[%emt 0:00:16]} 37. Qe6 {[%emt 0:00:02]} Rd8 {[%emt 0:00:27]} 38. Bc6 {[%emt 0:00:22]} (38. Bf1 $17 {was necessary.}) 38... Qa6 {[%emt 0:00:16][%cal Od8d6] ...Rd6! is the strong threat.} 39. h4 {[%emt 0:00:25]} h6 {[%emt 0:01:19][%cal Od8d6] Hoping for ...Rd6!} 40. Bxh6 $2 {[%emt 0:00:29] [#]} (40. Bd7 Qxe6 41. Bxe6) 40... Bf8 $1 {[%emt 0:01:27]} ({Weaker is} 40... gxh6 41. Qxe7 Rd1+ 42. Kh2 Qxc6 43. Qf8+ Kh7 44. Qf7+ Kh8 45. Qf8+ Kh7 46. Qf7+ Kh8 47. Qf8+ $11) ({Stronger than} 40... Rd1+ 41. Kh2 gxh6 42. Qxe7 Qxc6 43. Qf8+ Kh7 44. Qf7+ Kh8 45. Qf8+ Kh7 46. Qf7+ Kh8 47. Qf8+ $11) 41. Be3 {[%emt 0:00:06]} (41. Bxg7+ $142 Bxg7 42. Kh2) 41... Rd6 {[%emt 0:00:21]} 42. Qe8 {[%emt 0:01:15]} Qxc6 {[%emt 0:00:03]} 43. Qxf8+ {[%emt 0:00:00]} Kh7 {[%emt 0:00:01] ( -> ...Rd1+)} 44. Kf1 {[%emt 0:00:24]} Qh1+ {[%emt 0:00:03] Weighted Error Value: White=0.77/Black=0.14 (very precise)} 0-1

[Event "MPL-4 Indian Chess Tour 2022"]
[Site "Chess24"]
[Date "2022.09.27"]
[Round "1.7"]
[White "Vaibhav, Suri"]
[Black "Iniyan, P."]
[Result "1-0"]
[ECO "B53"]
[WhiteElo "2600"]
[BlackElo "2556"]
[Annotator "TA"]
[PlyCount "71"]
[EventDate "2022.09.29"]
[EventType "tourn (rapid)"]
[EventCountry "NET"]
[SourceTitle "playchess.com"]
[Source "ChessBase"]
[SourceQuality "1"]
[WhiteTeam "India"]
[BlackTeam "India"]
[WhiteTeamCountry "IND"]
[BlackTeamCountry "IND"]
[TimeControl "900+10"]

{[%evp 9,71,11,6,0,0,8,13,10,8,2,26,28,31,25,23,21,33,41,81,81,69,93,90,15,51,0,0,0,0,0,175,162,156,180,161,154,237,237,237,232,235,235,231,194,231,229,280,266,313,270,272,252,285,276,285,285,277,278,277,275,270,269,12831,4736]} 1. e4 {[%emt 0:00:00]} c5 {[%emt 0:00:00]} 2. Nf3 {[%emt 0:00:02]} d6 {[%emt 0:00:02]} 3. Nc3 {[%emt 0:00:01]} Nf6 {[%emt 0:00:02][%cal Bg8f6,Bf6d7,Bd7c5][%mdl 32]} 4. d4 {[%emt 0:00:01]} cxd4 {[%emt 0:00:01]} 5. Qxd4 {[%emt 0:00:01]} Nc6 {[%emt 0:00:23]} 6. Qd3 {[%emt 0:00:02] B53: Sicilian: 2...d6: Lines with Qxd4.} g6 {[%emt 0:00:57]} 7. Nd5 $1 {[%emt 0:00:01][%mdl 4] is now more promising than 7.Be2.} Bg7 {[%emt 0:00:07]} 8. c3 {[%emt 0:00:02] The position is equal.} Nd7 {[%emt 0:00:38]} 9. Bg5 {[%emt 0:00:03]} Nc5 {[%emt 0:00:06] [#]} 10. Qe3 $146 {[%emt 0:00:06]} ({Predecessor:} 10. Qc2 h6 11. Bh4 Bg4 12. Be2 Qd7 13. h3 Bxf3 14. Bxf3 g5 15. Bg3 e6 16. Ne3 {1-0 (59) Xiong,J (2686)-Sarana,A (2685) Chess.com INT 2022}) 10... h6 {[%emt 0:00:35]} 11. Bh4 {[%emt 0:00:01]} g5 {[%emt 0:00:00]} 12. Bg3 {[%emt 0:00:02]} e6 {[%emt 0:00:01]} 13. Nb4 {[%emt 0:00:30]} Nxb4 {[%emt 0:00:36]} 14. cxb4 {[%emt 0:00:02]} Na4 {[%emt 0:00:00]} (14... Bxb2 $2 15. Rb1 Nxe4 16. Rxb2 Nxg3 17. hxg3 $18) 15. Rd1 {[%emt 0:03:04]} Bxb2 {[%emt 0:03:55]} 16. Rxd6 {[%emt 0:05:52] White is more active.} ({White should play} 16. Bb5+ $1 $16 Bd7 17. Bxd7+ (17. Rxd6 Bc3+ 18. Kd1 Bxb5 $17) 17... Qxd7 18. O-O) 16... Bd7 $1 $11 {[%emt 0:00:05]} 17. Be5 {[%emt 0:00:16] Prevents Bc3+.} (17. Bd3 $14) 17... Bxe5 $1 {[%emt 0:01:02]} 18. Nxe5 {[%emt 0:00:02]} Qc7 {[%emt 0:00:00]} 19. Qd2 $36 {[%emt 0:00:27][%cal Oe5f7][%mdl 2048] Strongly threatening Nxf7! Black is under pressure.} Bc6 $2 {[%emt 0:00:05] Black is on the road to losing.} (19... Nc3 $11) 20. h4 $18 {[%emt 0:01:10]} Ke7 {[%emt 0:02:34]} 21. Nxc6+ {[%emt 0:00:26]} bxc6 {[%emt 0:00:00]} 22. e5 {[%emt 0:00:02]} Rad8 {[%emt 0:00:44]} (22... Nb6 $16) 23. hxg5 {[%emt 0:00:47]} Rxd6 {[%emt 0:00:02]} 24. exd6+ {[%emt 0:00:01]} ({But not} 24. Qxd6+ Qxd6 25. exd6+ Kxd6 26. gxh6 Nb6) 24... Qxd6 {[%emt 0:00:00]} 25. Qxd6+ {[%emt 0:00:46]} ({Less strong is} 25. gxh6 Qe5+ 26. Be2 Rd8 $16) 25... Kxd6 {[%emt 0:00:00]} 26. gxh6 {[%emt 0:00:15][%mdl 4096] Endgame KRB-KRN} Nc3 {[%emt 0:00:02]} 27. a3 {[%emt 0:00:29]} f5 {[%emt 0:00:01]} 28. f3 {[%emt 0:01:02] Prevents Ne4.} Nd5 {[%emt 0:02:10]} 29. Kd2 {[%emt 0:00:39]} Nf6 {[%emt 0:00:51]} 30. Bc4 {[%emt 0:00:20]} Ng8 {[%emt 0:00:49]} 31. h7 {[%emt 0:00:07]} Nf6 {[%emt 0:00:02] [#]} 32. Re1 $1 {[%emt 0:00:42]} e5 {[%emt 0:00:00] [#]} 33. Rh1 {[%emt 0:00:30]} Rxh7 {[%emt 0:00:09]} 34. Rxh7 {[%emt 0:00:02]} Nxh7 {[%emt 0:00:00]} 35. Bd3 {[%emt 0:00:00]} f4 $2 {[%emt 0:00:29]} (35... e4) 36. Bxh7 {[%emt 0:00:02] Weighted Error Value: White=0.08 (flawless) /Black=0.20 (precise)} 1-0

[Event "MPL-4 Indian Chess Tour 2022"]
[Site "Chess24"]
[Date "2022.09.27"]
[Round "1.8"]
[White "Bharath Subramaniyam H"]
[Black "Aronyak Ghosh"]
[Result "1/2-1/2"]
[ECO "B11"]
[WhiteElo "2495"]
[BlackElo "2519"]
[Annotator "TA"]
[PlyCount "133"]
[EventDate "2022.09.29"]
[EventType "tourn"]
[EventCountry "NET"]
[SourceTitle "playchess.com"]
[Source "ChessBase"]
[SourceQuality "1"]
[TimeControl "900+10"]

{[%evp 10,133,24,22,18,0,12,0,32,37,33,36,48,51,56,56,58,29,57,57,81,84,87,106,88,83,83,80,77,81,107,0,0,0,0,0,11,0,4,0,0,0,0,8,5,-112,-119,-118,-112,-114,-128,-117,-122,-126,-122,-107,-112,-81,0,0,129,133,145,154,189,189,191,124,277,275,279,289,292,268,260,262,368,293,293,277,357,366,372,358,356,359,498,478,485,438,603,1031,1889,1832,1814,1585,29958,29956,5712,6103,29966,29968,29965,29964,29976,29975,29978,4631,29976,29975,12812,0,0,0,0,0,0,0,0,0,0,0,0,0,0,0]} 1. e4 {[%emt 0:00:00]} c6 {[%emt 0:00:00]} 2. Nf3 {[%emt 0:00:08]} d5 {[%emt 0:00:06]} 3. Nc3 {[%emt 0:00:02]} dxe4 {[%emt 0:00:05]} 4. Nxe4 {[%emt 0:00:01]} Nf6 {[%emt 0:00:02]} 5. Qe2 {[%emt 0:00:02]} Nxe4 {[%emt 0:00:30]} 6. Qxe4 {[%emt 0:00:02]} Qd5 {[%emt 0:00:02] B11: Caro-Kann: Two Knights Variation.} 7. Qh4 {[%emt 0:00:05]} Qe6+ {[%emt 0:00:07]} 8. Be2 {[%emt 0:00:03]} Qg4 {[%emt 0:00:10]} 9. Qg3 {[%emt 0:00:02]} Qxg3 {[%emt 0:00:57]} 10. hxg3 {[%emt 0:00:03]} Bf5 {[%emt 0:02:24]} 11. b3 {[%emt 0:02:17]} Nd7 {[%emt 0:00:57]} 12. Bb2 {[%emt 0:02:07] Against e5} h6 {[%emt 0:01:20]} 13. O-O-O {[%emt 0:00:56]} e6 {[%emt 0:00:09]} 14. Rde1 {[%emt 0:02:38] [#]} Nf6 $5 $146 {[%emt 0:00:42][%mdl 8] New and interesting.} ({Predecessor:} 14... Rg8 15. Nh4 Bh7 16. Bh5 Ke7 17. Re3 Nf6 18. Bxf6+ gxf6 19. g4 Rg5 20. f4 Ra5 {1-0 (37) Liang,A (2536)-Brattain,M (2364) Saint Louis 2017}) 15. Ne5 $1 {[%emt 0:02:50]} Rd8 {[%emt 0:04:20]} 16. g4 {[%emt 0:00:41]} Bh7 {[%emt 0:00:02]} 17. g5 {[%emt 0:02:04]} hxg5 {[%emt 0:00:03]} 18. Bh5 {[%emt 0:00:06] White is more active.} Nxh5 {[%emt 0:00:09]} 19. Rxh5 {[%emt 0:00:00]} f6 {[%emt 0:00:01]} 20. Ng4 {[%emt 0:00:51]} (20. Ng6 $1 $16 {[%cal Rg6h8]} Bxg6 21. Rxh8) 20... Kf7 $1 $11 {[%emt 0:00:36]} 21. Reh1 {[%emt 0:00:03]} Kg6 {[%emt 0:01:26]} 22. d3 {[%emt 0:01:05]} Be7 {[%emt 0:00:56]} 23. R5h3 {[%emt 0:00:37]} b5 {[%emt 0:00:18]} 24. g3 {[%emt 0:00:46]} e5 {[%emt 0:00:19]} 25. Bxe5 {[%emt 0:00:56]} fxe5 {[%emt 0:01:14]} 26. Nxe5+ {[%emt 0:00:00]} Kf6 {[%emt 0:00:01]} 27. Nxc6 {[%emt 0:00:01]} (27. f4 $11) 27... Ba3+ $17 {[%emt 0:00:03]} 28. Kd1 {[%emt 0:00:06]} Rd6 {[%emt 0:01:02] White must now prevent ...Bxd3.} 29. Nxa7 {[%emt 0:00:02] [#]} Bxd3 {[%emt 0:00:16][%mdl 512]} 30. cxd3 {[%emt 0:00:23]} (30. Rxh8 $2 {is a self mate.} Bc4+ 31. Ke1 Bb4+ 32. c3 Bxc3#) 30... Rb8 {[%emt 0:00:02]} 31. Rh8 {[%emt 0:00:20]} Rb7 {[%emt 0:00:02]} 32. Nc8 {[%emt 0:00:16]} Rxd3+ {[%emt 0:00:13]} 33. Ke2 {[%emt 0:00:03]} Rc3 {[%emt 0:00:14]} ({Black should play} 33... Rbd7 $17 {Hoping for ...Bc5.} 34. Re1 Rd2+ 35. Kf1 Rxa2) 34. Rd1 $11 {[%emt 0:00:04]} Rb8 {[%emt 0:00:34] [#]} (34... Rc6 $11 {keeps the balance.}) 35. Nd6 $1 $36 {[%emt 0:00:42][%mdl 2048] Black is under strong pressure.} Rc2+ {[%emt 0:01:11]} (35... Rxh8 36. Ne4+) 36. Kd3 {[%emt 0:00:02]} Rxh8 {[%emt 0:00:14]} 37. Kxc2 {[%emt 0:00:02][%mdl 4096] Endgame KRB-KRN} Rh2 {[%emt 0:00:04] [#]} 38. Nxb5 {[%emt 0:00:32]} (38. Kc3 $1 $18) 38... Bb4 $2 {[%emt 0:00:01]} (38... Rxf2+ $16 39. Rd2 Bc5) 39. Rf1 {[%emt 0:00:08]} Ke5 {[%emt 0:00:07]} 40. Kd3 {[%emt 0:00:05]} Bc5 {[%emt 0:00:05]} 41. f4+ {[%emt 0:00:08]} gxf4 {[%emt 0:00:01]} 42. gxf4+ {[%emt 0:00:00]} Kf5 {[%emt 0:00:00]} (42... Kd5 {is a better defense.} 43. Nc3+ Kc6) 43. Nc3 {[%emt 0:00:08]} Bd6 {[%emt 0:00:06]} 44. Ne2 {[%emt 0:00:11]} Rh3+ {[%emt 0:00:07]} 45. Kc4 {[%emt 0:00:04]} Rh2 {[%emt 0:00:05]} 46. Nd4+ {[%emt 0:00:04]} Ke4 {[%emt 0:00:03]} 47. a4 {[%emt 0:00:20][%cal Ba2a4,Ba4a5,Ba5a6][%mdl 32]} Bxf4 {[%emt 0:00:09]} 48. Re1+ {[%emt 0:00:05]} Be3 {[%emt 0:00:00]} 49. a5 {[%emt 0:00:09] And now b4 would win.} g5 {[%emt 0:00:25] [#]} 50. Nf5 $1 {[%emt 0:00:46][%mdl 512]} Kxf5 {[%emt 0:00:02]} (50... Rc2+ 51. Kb4) 51. Rxe3 $18 {[%emt 0:00:01] KR-KR} g4 {[%emt 0:00:00]} 52. b4 {[%emt 0:00:15]} Kf4 {[%emt 0:00:03]} 53. Re8 {[%emt 0:00:02]} g3 {[%emt 0:00:01]} 54. a6 {[%emt 0:00:09]} Ra2 {[%emt 0:00:32]} 55. Kb5 {[%emt 0:00:03]} g2 {[%emt 0:00:13]} 56. Rg8 {[%emt 0:00:03]} Kf3 {[%emt 0:00:00]} 57. Kb6 {[%emt 0:00:08]} Ra4 {[%emt 0:00:02] [#]} 58. Rxg2 $3 {[%emt 0:00:31][%mdl 512]} Kxg2 {[%emt 0:00:13] KR-KPP} (58... Rxb4+ 59. Ka5) 59. b5 {[%emt 0:00:01]} Kf3 {[%emt 0:00:01]} 60. Kc5 $2 {[%emt 0:00:22]} (60. Kb7 $18 {White wants to mate with a7.} Ke4 61. b6) 60... Ke4 {[%emt 0:00:17] The position is equal.} 61. b6 {[%emt 0:00:15]} Ra5+ {[%emt 0:00:02]} 62. Kc6 {[%emt 0:00:05] aiming for a7.} Rxa6 {[%emt 0:00:00]} 63. Kc7 {[%emt 0:00:00]} Kd5 {[%emt 0:00:15]} 64. b7 {[%emt 0:00:02]} Rc6+ {[%emt 0:00:01]} 65. Kd7 {[%emt 0:00:02]} Rb6 {[%emt 0:00:01]} 66. Kc7 $1 {[%emt 0:00:01]} Rxb7+ {[%emt 0:00:02]} 67. Kxb7 {[%emt 0:00:01] White really could win this.  Weighted Error Value: White=0.22 (precise) /Black=0.49} 1/2-1/2

[Event "MPL-4 Indian Chess Tour 2022"]
[Site "Chess24"]
[Date "2022.09.27"]
[Round "2.1"]
[White "Raja Harshit"]
[Black "Aronyak Ghosh"]
[Result "0-1"]
[ECO "B11"]
[WhiteElo "2459"]
[BlackElo "2519"]
[Annotator "TA"]
[PlyCount "44"]
[EventDate "2022.09.29"]
[EventType "tourn"]
[EventCountry "NET"]
[SourceTitle "playchess.com"]
[Source "ChessBase"]
[SourceQuality "1"]
[TimeControl "900+10"]

{[%evp 10,44,34,27,31,18,36,22,15,2,33,24,31,27,20,25,20,24,33,-418,-419,-412,-407,-545,-537,-527,-540,-632,-625,-602,-477,-475,-471,-531,-527,-579,-574]} 1. e4 {[%emt 0:00:00]} c6 {[%emt 0:00:00]} 2. Nf3 {[%emt 0:00:02]} d5 {[%emt 0:00:02]} 3. Nc3 {[%emt 0:00:00]} dxe4 {[%emt 0:00:01]} 4. Nxe4 {[%emt 0:00:00]} Nf6 {[%emt 0:00:00]} 5. Qe2 {[%emt 0:00:01]} Nxe4 {[%emt 0:00:01]} 6. Qxe4 {[%emt 0:00:00]} Be6 {[%emt 0:00:00] B11: Caro-Kann: Two Knights Variation.} 7. b3 {[%emt 0:00:02]} Nd7 {[%emt 0:00:02]} 8. Bc4 {[%emt 0:00:01]} Nf6 {[%emt 0:00:55] The position is equal.} 9. Qe2 {[%emt 0:00:03]} Bd5 {[%emt 0:01:13] [#]} 10. Bb2 $146 {[%emt 0:00:05]} ({Predecessor:} 10. O-O Bxf3 11. Qxf3 e6 12. a4 a5 13. Bb2 Be7 14. Rad1 O-O 15. Qg3 Ne8 16. Rfe1 {½-½ (60) Yu,Y (2763)-Adhiban,B (2639) Douglas 2019}) 10... e6 {[%emt 0:00:16]} 11. O-O {[%emt 0:00:02]} Be7 {[%emt 0:00:55]} 12. Ne5 {[%emt 0:00:04]} Bxc4 $1 {[%emt 0:01:03]} 13. bxc4 {[%emt 0:00:03]} O-O {[%emt 0:00:01]} 14. f4 $2 {[%emt 0:00:07][%mdl 8192] [#] Loses the game.} (14. Rfe1 $14 {keeps the upper hand.}) 14... Qb6+ $19 {[%emt 0:00:13]} 15. Kh1 {[%emt 0:01:09]} Qxb2 {[%emt 0:00:08]} 16. Rab1 {[%emt 0:00:03]} Qxc2 {[%emt 0:00:23] Black is clearly winning.} 17. Rxb7 {[%emt 0:00:05]} Bc5 {[%emt 0:00:06]} 18. Nxc6 {[%emt 0:01:18]} Rac8 {[%emt 0:00:09]} 19. Ne5 {[%emt 0:00:12]} Qe4 {[%emt 0:00:04]} 20. Qxe4 {[%emt 0:00:21]} Nxe4 {[%emt 0:00:00]} 21. Nd7 {[%emt 0:00:18]} Rfd8 {[%emt 0:00:10]} 22. f5 {[%emt 0:02:07]} Nd6 {[%emt 0:00:55] Weighted Error Value: White=0.60/Black=0.15 (very precise)} 0-1

[Event "MPL-4 Indian Chess Tour 2022"]
[Site "Chess24"]
[Date "2022.09.27"]
[Round "2.2"]
[White "Iniyan, P."]
[Black "Bharath Subramaniyam H"]
[Result "1/2-1/2"]
[ECO "D31"]
[WhiteElo "2556"]
[BlackElo "2495"]
[Annotator "TA"]
[PlyCount "138"]
[EventDate "2022.09.29"]
[EventType "tourn"]
[EventCountry "NET"]
[SourceTitle "playchess.com"]
[Source "ChessBase"]
[SourceQuality "1"]
[TimeControl "900+10"]

{[%evp 13,138,-4,0,0,0,0,0,0,0,0,0,0,0,0,32,36,34,0,0,0,0,0,0,0,0,0,2,0,0,8,6,4,5,4,18,6,6,4,5,5,32,26,26,0,19,0,0,0,0,0,0,0,0,0,0,0,106,106,98,8,98,102,195,195,194,180,190,115,130,18,85,16,63,9,14,18,14,8,10,0,0,0,0,0,0,0,0,0,0,0,0,0,0,0,0,0,0,0,0,0,0,0,0,0,0,0,0,0,0,0,0,0,0,0,0,0,0,0,0,0,0,0,0,0,0,0,0]} 1. d4 {[%emt 0:00:00]} d5 {[%emt 0:00:00]} 2. c4 {[%emt 0:00:00]} e6 {[%emt 0:00:02]} 3. Nc3 {[%emt 0:00:01]} c6 {[%emt 0:00:13]} 4. cxd5 {[%emt 0:00:12]} exd5 {[%emt 0:00:05]} 5. Qc2 {[%emt 0:00:01]} Bd6 {[%emt 0:00:09]} 6. Nf3 {[%emt 0:00:13]} Ne7 {[%emt 0:00:04]} 7. Bg5 {[%emt 0:00:08]} O-O {[%emt 0:00:27]} 8. e3 {[%emt 0:00:03] D31: Queen's Gambit Declined: Semi-Slav without ...Nf6 (+ Marshall Gambit and Noteboom) and Exchange Variation lines without ...Nf6.} h6 {[%emt 0:00:22]} 9. Bh4 {[%emt 0:00:05]} Bf5 {[%emt 0:00:36] [#]} 10. Qxf5 $146 {[%emt 0:00:04]} ({Predecessor:} 10. Bd3 Qd7 11. O-O Bxd3 12. Qxd3 Nf5 13. Bg3 Bxg3 14. hxg3 Nd6 15. b4 Qe6 16. b5 {1-0 (50) Chirila,I (2576)-Lee,Q (2297) Batumi 2018}) 10... Nxf5 {[%emt 0:00:05]} 11. Bxd8 {[%emt 0:00:00]} Rxd8 {[%emt 0:00:01]} 12. Bd3 {[%emt 0:00:00]} Ne7 {[%emt 0:00:10]} 13. g4 {[%emt 0:00:08]} c5 {[%emt 0:02:16]} 14. dxc5 {[%emt 0:01:17]} Bxc5 {[%emt 0:00:03]} 15. Nb5 {[%emt 0:00:00]} Nbc6 {[%emt 0:00:20]} 16. Rc1 {[%emt 0:00:02]} Bb6 {[%emt 0:00:45]} 17. Ke2 {[%emt 0:01:20]} a6 {[%emt 0:00:33]} 18. Nc3 {[%emt 0:00:02]} d4 {[%emt 0:00:21]} 19. exd4 {[%emt 0:00:03]} Nxd4+ {[%emt 0:01:24]} 20. Nxd4 {[%emt 0:00:03]} Bxd4 {[%emt 0:00:58]} 21. Be4 {[%emt 0:00:03]} Rab8 {[%emt 0:00:19]} 22. Rhd1 {[%emt 0:00:11]} b5 {[%emt 0:00:03]} 23. h3 {[%emt 0:01:08]} Rd6 {[%emt 0:02:15]} 24. Rd3 {[%emt 0:00:25]} Rbd8 {[%emt 0:00:26]} 25. Rcd1 {[%emt 0:00:01][%cal Oc3d5]} b4 {[%emt 0:01:51]} 26. Na4 {[%emt 0:01:19]} Ng6 {[%emt 0:02:17]} 27. Bxg6 {[%emt 0:00:04]} fxg6 {[%emt 0:00:00]} 28. f4 {[%emt 0:00:03]} a5 {[%emt 0:00:21]} 29. Kf3 {[%emt 0:00:50]} g5 {[%emt 0:00:10]} 30. f5 {[%emt 0:01:02]} g6 {[%emt 0:00:45]} 31. fxg6 {[%emt 0:00:02]} Kg7 {[%emt 0:00:25]} 32. b3 {[%emt 0:00:04]} Kxg6 {[%emt 0:00:39]} 33. Kg2 {[%emt 0:00:03][%cal Oa4b2]} Kf6 {[%emt 0:01:05]} 34. Nb2 {[%emt 0:00:03]} Rd5 {[%emt 0:00:39]} (34... Bc5 $11 {keeps the balance.}) 35. Nc4 $16 {[%emt 0:00:10]} Ke6 {[%emt 0:00:00]} 36. R1d2 {[%emt 0:01:13]} (36. Re1+ $16 Kf7 37. Rf1+ Ke8 38. Rdf3) 36... R8d7 {[%emt 0:00:10]} (36... Bc5 $11 {remains equal.} 37. Rxd5 Rxd5) 37. Rf3 {[%emt 0:02:21] [#] Re2+ is the strong threat.} Rd8 {[%emt 0:00:46]} (37... Ke7 $16) 38. Re2+ $18 {[%emt 0:01:06]} Kd7 {[%emt 0:00:02]} 39. Rf7+ {[%emt 0:00:02]} Kc8 {[%emt 0:00:00]} 40. Ree7 {[%emt 0:00:03]} (40. Rh7 $18) 40... Kb8 $16 {[%emt 0:00:26]} 41. Rf5 {[%emt 0:00:16] White is more active.} (41. Kf3 $16) 41... a4 {[%emt 0:00:07]} (41... Rxf5 $11 42. gxf5 Rd5) 42. Re6 {[%emt 0:02:33]} (42. Rff7 $16) 42... axb3 {[%emt 0:00:04]} (42... Rxf5 $11 43. gxf5 axb3 44. axb3 Rf8) 43. axb3 {[%emt 0:00:02]} (43. Rxd5 $14 Rxd5 44. axb3) 43... Rxf5 $11 {[%emt 0:00:09] The position is equal.} 44. gxf5 {[%emt 0:00:00][%mdl 4096] Endgame KRB-KRN} Rf8 {[%emt 0:00:01]} 45. Nd6 {[%emt 0:00:19]} Bc5 {[%emt 0:00:04]} 46. Re8+ {[%emt 0:00:33]} Rxe8 {[%emt 0:00:02]} 47. Nxe8 {[%emt 0:00:00] KB-KN} Kc8 {[%emt 0:00:03]} 48. Kf3 {[%emt 0:00:01] [#] Strongly threatening Nf6.} Bd4 {[%emt 0:00:40] Inhibits Nf6.} 49. Nd6+ {[%emt 0:01:11]} Kd7 {[%emt 0:00:02]} 50. Ne4 {[%emt 0:00:06] aiming for Kg4.} Ke7 {[%emt 0:00:21]} 51. Kg4 {[%emt 0:00:01] Black must now prevent Kh5.} Kf7 {[%emt 0:00:01]} 52. Nd6+ {[%emt 0:00:17]} Ke7 {[%emt 0:00:05]} 53. Ne4 {[%emt 0:00:53] Threatens to win with Kh5.} Kf7 {[%emt 0:00:02]} 54. Kh5 {[%emt 0:00:01]} Kg7 {[%emt 0:00:01]} 55. Nd6 {[%emt 0:00:37]} Be5 {[%emt 0:00:08]} 56. Nc4 {[%emt 0:00:13]} Bf4 {[%emt 0:00:15]} 57. Nb6 {[%emt 0:00:09]} Kf6 {[%emt 0:00:27]} 58. Nd5+ {[%emt 0:00:01]} Kxf5 {[%emt 0:00:02] And now ...Bd2 would win.} 59. Nxb4 {[%emt 0:00:01]} (59. Kxh6 g4+ 60. Nxf4 Kxf4 61. hxg4 Kxg4 62. Kg7 Kf5 63. Kh7 Ke4 64. Kg6 Kd3 65. Kf5 Kc3 66. Ke4 Kxb3 67. Kd3 Ka2 68. Ke3 b3 69. Kf4 b2 70. Kg4 b1=Q 71. Kg5 Kb3 72. Kg4 Qe4+ 73. Kg5 Kc3 74. Kf6 Kd4 75. Kf7 Qf5+ 76. Kg8 Qd7 77. Kf8 Ke5 78. Kg8 Kf6 79. Kh8 Qg7#) 59... Bd2 {[%emt 0:00:01]} 60. Nc6 {[%emt 0:01:33]} Kf4 {[%emt 0:00:05]} 61. Kxh6 {[%emt 0:00:12]} Kg3 {[%emt 0:00:04] ( -> ...g4+)} 62. Kh5 {[%emt 0:00:01] Prevents g4.} Kxh3 {[%emt 0:00:02]} 63. Ne5 {[%emt 0:00:01]} Kg3 {[%emt 0:00:03]} 64. Ng4 {[%emt 0:00:15]} Kf3 {[%emt 0:00:03]} 65. Nh6 {[%emt 0:00:02]} Ke4 {[%emt 0:00:02]} 66. Kg4 {[%emt 0:00:02]} Kd4 {[%emt 0:00:02]} 67. Nf7 {[%emt 0:00:01]} Kc3 {[%emt 0:00:02]} 68. Nxg5 {[%emt 0:00:00]} Bxg5 {[%emt 0:00:02]} 69. Kxg5 {[%emt 0:00:01]} Kxb3 {[%emt 0:00:01] Weighted Error Value: White=0.13 (very precise) /Black=0.14 (very precise)} 1/2-1/2